Body Name,Body,Transaction Date,Value,Supplier,Description,Purchase Type,Cost Center,Department,Section
Chorley Borough Council,http://Statistics.Data.gov.uk/id/local-Authority/30UE,01/10/2020,38.93,Amazon,Universal charger,Online Purchase,4512,Communities,Housing Solutions & Public Pro
Chorley Borough Council,http://Statistics.Data.gov.uk/id/local-Authority/30UE,06/10/2020,"3,892.09",Sprout Social,Sprout Social Annual Payment,Online Purchase,4301,Communities,Housing Solutions & Public Pro
Chorley Borough Council,http://Statistics.Data.gov.uk/id/local-Authority/30UE,07/10/2020,67.39,Amazon,power bank,Online Purchase,4512,Communities,Housing Solutions & Public Pro
Chorley Borough Council,http://Statistics.Data.gov.uk/id/local-Authority/30UE,07/10/2020,549.03,Digicert,Thawte SSL Webserver OV,Online Purchase,4512,Communities,Housing Solutions & Public Pro
Chorley Borough Council,http://Statistics.Data.gov.uk/id/local-Authority/30UE,12/10/2020,225.00,Lostock Skip Hire,Skip hire,Online Purchase,4614,Communities,Housing Solutions & Public Pro
Chorley Borough Council,http://Statistics.Data.gov.uk/id/local-Authority/30UE,13/10/2020,76.88,Amazon,Amazon - The National Trust Manual,Online Purchase,5244,Communities,Housing Solutions & Public Pro
Chorley Borough Council,http://Statistics.Data.gov.uk/id/local-Authority/30UE,14/10/2020,390.00,ModernGov,ModernGov - Virtual Conference booked for NAME REDACTED,Online Purchase,4001,Communities,Housing Solutions & Public Pro
Chorley Borough Council,http://Statistics.Data.gov.uk/id/local-Authority/30UE,20/10/2020,5.64,Amazon,Dusting Brush,Online Purchase,5244,Communities,Housing Solutions & Public Pro
Chorley Borough Council,http://Statistics.Data.gov.uk/id/local-Authority/30UE,22/10/2020,44.95,2Co,Firework simulator,Online Purchase,4301,Communities,Housing Solutions & Public Pro
Chorley Borough Council,http://Statistics.Data.gov.uk/id/local-Authority/30UE,26/10/2020,1.50,Royal Mail,not enough postage,Online Purchase,4340,Communities,Housing Solutions & Public Pro
Chorley Borough Council,http://Statistics.Data.gov.uk/id/local-Authority/30UE,27/10/2020,64.62,Safety Label,self-adhesive distance stickers,Online Purchase,5220,Communities,Housing Solutions & Public Pro
Chorley Borough Council,http://Statistics.Data.gov.uk/id/local-Authority/30UE,28/10/2020,19.00,Shuttershock,Subscription,Online Purchase,4301,Communities,Housing Solutions & Public Pro
Chorley Borough Council,http://Statistics.Data.gov.uk/id/local-Authority/30UE,04/11/2020,59.89,Amazon,Microsoft bluetooth mouse,Online Purchase,4512,Communities,Housing Solutions & Public Pro
Chorley Borough Council,http://Statistics.Data.gov.uk/id/local-Authority/30UE,04/11/2020,165.00,Lostock Skip Hire,skip hire,Online Purchase,4614,Communities,Housing Solutions & Public Pro
Chorley Borough Council,http://Statistics.Data.gov.uk/id/local-Authority/30UE,06/11/2020,178.88,Amazon,iPhone case,Online Purchase,4512,Communities,Housing Solutions & Public Pro
Chorley Borough Council,http://Statistics.Data.gov.uk/id/local-Authority/30UE,10/11/2020,9.99,Argos,iPhone Case,Online Purchase,4512,Communities,Housing Solutions & Public Pro
Chorley Borough Council,http://Statistics.Data.gov.uk/id/local-Authority/30UE,12/11/2020,161.82,Amazon,Ipad screen protector,Online Purchase,4512,Communities,Housing Solutions & Public Pro
Chorley Borough Council,http://Statistics.Data.gov.uk/id/local-Authority/30UE,16/11/2020,120.00,Free Thought,Domain renewal,Online Purchase,4512,Communities,Housing Solutions & Public Pro
Chorley Borough Council,http://Statistics.Data.gov.uk/id/local-Authority/30UE,19/11/2020,279.80,Amazon,iPad case,Online Purchase,4512,Communities,Housing Solutions & Public Pro
Chorley Borough Council,http://Statistics.Data.gov.uk/id/local-Authority/30UE,23/11/2020,78.89,Amazon,iPad keyboard,Online Purchase,4512,Communities,Housing Solutions & Public Pro
Chorley Borough Council,http://Statistics.Data.gov.uk/id/local-Authority/30UE,24/11/2020,2.00,Royal Mail,not enough postage,Online Purchase,4340,Communities,Housing Solutions & Public Pro
Chorley Borough Council,http://Statistics.Data.gov.uk/id/local-Authority/30UE,24/11/2020,201.00,Inside Housing,1 Year UK Print and Digital,Online Purchase,5010,Communities,Housing Solutions & Public Pro
Chorley Borough Council,http://Statistics.Data.gov.uk/id/local-Authority/30UE,29/11/2020,19.00,Shuttershock,Subscription,Online Purchase,4301,Communities,Housing Solutions & Public Pro
Chorley Borough Council,http://Statistics.Data.gov.uk/id/local-Authority/30UE,02/12/2020,79.49,Amazon,Portable TV stand,Online Purchase,4512,Communities,Housing Solutions & Public Pro
Chorley Borough Council,http://Statistics.Data.gov.uk/id/local-Authority/30UE,14/12/2020,225.00,Lostock Skip Hire,Skip hire,Online Purchase,4614,Communities,Housing Solutions & Public Pro
Chorley Borough Council,http://Statistics.Data.gov.uk/id/local-Authority/30UE,18/12/2020,29.98,Amazon,iPad case,Online Purchase,4512,Communities,Housing Solutions & Public Pro
Chorley Borough Council,http://Statistics.Data.gov.uk/id/local-Authority/30UE,30/12/2020,19.00,Shuttershock,Subscription,Online Purchase,4301,Communities,Housing Solutions & Public Pro
Chorley Borough Council,http://Statistics.Data.gov.uk/id/local-Authority/30UE,04/11/2020,-7.53,Google ads,Google ads refund,Refund,4301,Chief Executive,Office of Chief Executive
Chorley Borough Council,http://Statistics.Data.gov.uk/id/local-Authority/30UE,13/10/2020,55.14,Wardsflex,Manholes keys - 710mm long/ 300mm T Handle/ 32mm Key end (pair) carriage,Online Purchase,4736,Customer & Digital,Streetscene
Chorley Borough Council,http://Statistics.Data.gov.uk/id/local-Authority/30UE,14/10/2020,10.15,B &amp; Q,10 x Spray bottles,Store Purchase,4019,Customer & Digital,Streetscene
Chorley Borough Council,http://Statistics.Data.gov.uk/id/local-Authority/30UE,08/12/2020,27.16,Amazon,12 x USB to USB C adapters,Online Purchase,4736,Customer & Digital,Streetscene
Chorley Borough Council,http://Statistics.Data.gov.uk/id/local-Authority/30UE,08/10/2020,50.00,DVLA,vehicle tax,Road Tax,4736,Customer & Digital,Streetscene
Chorley Borough Council,http://Statistics.Data.gov.uk/id/local-Authority/30UE,09/10/2020,267.50,DVLA,FL66PFG vehicle tax,Road Tax,4736,Customer & Digital,Streetscene
Chorley Borough Council,http://Statistics.Data.gov.uk/id/local-Authority/30UE,09/10/2020,267.50,DVLA,Vehicle tax FL66 POJ,Road Tax,4736,Customer & Digital,Streetscene
Chorley Borough Council,http://Statistics.Data.gov.uk/id/local-Authority/30UE,09/10/2020,267.50,DVLA,vehicle tax FL66 OKV,Road Tax,4736,Customer & Digital,Streetscene
Chorley Borough Council,http://Statistics.Data.gov.uk/id/local-Authority/30UE,09/10/2020,267.50,dvla,vehicle tax FL66 OSX,Road Tax,4736,Customer & Digital,Streetscene
Chorley Borough Council,http://Statistics.Data.gov.uk/id/local-Authority/30UE,09/10/2020,267.50,DVLA,vehicle tax FL66 OTZ,Road Tax,4736,Customer & Digital,Streetscene
Chorley Borough Council,http://Statistics.Data.gov.uk/id/local-Authority/30UE,09/10/2020,267.50,DVLA,vehicle tax FL66 OUX,Road Tax,4736,Customer & Digital,Streetscene
Chorley Borough Council,http://Statistics.Data.gov.uk/id/local-Authority/30UE,09/10/2020,267.50,DVLA,vehicle tax FL66 OWC,Road Tax,4736,Customer & Digital,Streetscene
Chorley Borough Council,http://Statistics.Data.gov.uk/id/local-Authority/30UE,09/10/2020,267.50,DVLA,vehicle tax FL66 OYW,Road Tax,4736,Customer & Digital,Streetscene
Chorley Borough Council,http://Statistics.Data.gov.uk/id/local-Authority/30UE,09/10/2020,267.50,DVLA,vehicle tax FL66 OZH,Road Tax,4736,Customer & Digital,Streetscene
Chorley Borough Council,http://Statistics.Data.gov.uk/id/local-Authority/30UE,09/10/2020,267.50,DVLA,vehicle tax FL66 OZU,Road Tax,4736,Customer & Digital,Streetscene
Chorley Borough Council,http://Statistics.Data.gov.uk/id/local-Authority/30UE,09/10/2020,267.50,DVLA,vehicle tax FL66 PDK,Road Tax,4736,Customer & Digital,Streetscene
Chorley Borough Council,http://Statistics.Data.gov.uk/id/local-Authority/30UE,09/10/2020,267.50,DVLA,vehicle tax FL66 PFF,Road Tax,4736,Customer & Digital,Streetscene
Chorley Borough Council,http://Statistics.Data.gov.uk/id/local-Authority/30UE,09/10/2020,267.50,DVLA,vehicle tax FL66 OJR,Road Tax,4736,Customer & Digital,Streetscene
Chorley Borough Council,http://Statistics.Data.gov.uk/id/local-Authority/30UE,09/10/2020,267.50,DVLA,vehicle tax FL66 OJM,Road Tax,4736,Customer & Digital,Streetscene
Chorley Borough Council,http://Statistics.Data.gov.uk/id/local-Authority/30UE,20/10/2020,97.50,drainage superstore,manhole lifting machine unable to purchase through regular suppliers,Store Purchase,4736,Customer & Digital,Streetscene
Chorley Borough Council,http://Statistics.Data.gov.uk/id/local-Authority/30UE,08/12/2020,267.50,DVLA,vehicle tax NJ10 OTW,Road Tax,4736,Customer & Digital,Streetscene
Chorley Borough Council,http://Statistics.Data.gov.uk/id/local-Authority/30UE,01/10/2020,89.44,microsoft,Microsoft Azure Backup Oct 20,Online Purchase,4512,Customer & Digital,ICT
Chorley Borough Council,http://Statistics.Data.gov.uk/id/local-Authority/30UE,24/10/2020,100.72,Zoom,Zoom 24/10/20 to 23/11/20,Online Purchase,4512,Customer & Digital,ICT
Chorley Borough Council,http://Statistics.Data.gov.uk/id/local-Authority/30UE,01/11/2020,74.53,microsoft,Microsoft Azure backup November 20,Online Purchase,4512,Customer & Digital,ICT
Chorley Borough Council,http://Statistics.Data.gov.uk/id/local-Authority/30UE,20/11/2020,"1,449.39",Microsoft,Microsoft Azure Backups 18/09/2020 to 17/10/2020,Online Purchase,4512,Customer & Digital,ICT
Chorley Borough Council,http://Statistics.Data.gov.uk/id/local-Authority/30UE,24/11/2020,100.72,Zoom,Zoom 24/11/20 to 23/12/20,Online Purchase,4512,Customer & Digital,ICT
Chorley Borough Council,http://Statistics.Data.gov.uk/id/local-Authority/30UE,01/12/2020,104.35,microsoft,Microsoft Azure backup Dec 20,Online Purchase,4512,Customer & Digital,ICT
Chorley Borough Council,http://Statistics.Data.gov.uk/id/local-Authority/30UE,22/12/2020,"1,732.97",Microsoft,Microsoft Azure Backups 18/09/2020 to 17/11/2020,Online Purchase,4512,Customer & Digital,ICT
Chorley Borough Council,http://Statistics.Data.gov.uk/id/local-Authority/30UE,24/12/2020,100.72,Zoom,Zoom Dec 20,Online Purchase,4512,Customer & Digital,ICT
Chorley Borough Council,http://Statistics.Data.gov.uk/id/local-Authority/30UE,17/11/2020,71.50,Swimming.Org,PWTAG Standards for Leisure Swimming Pools,Online Purchase,5220,Chief Executive,Office of Chief Executive
Chorley Borough Council,http://Statistics.Data.gov.uk/id/local-Authority/30UE,25/11/2020,7.45,Asda,Items for the grotto at Town Hall,Store Purchase,4301,Chief Executive,Office of Chief Executive
Chorley Borough Council,http://Statistics.Data.gov.uk/id/local-Authority/30UE,25/11/2020,33.00,Poundland,Items for the grotto at Town Hall,Store Purchase,4301,Chief Executive,Office of Chief Executive
Chorley Borough Council,http://Statistics.Data.gov.uk/id/local-Authority/30UE,25/11/2020,36.50,Asda,Items for the grotto at Town Hall,Store Purchase,4301,Chief Executive,Office of Chief Executive
Chorley Borough Council,http://Statistics.Data.gov.uk/id/local-Authority/30UE,25/11/2020,87.57,Home Bargains,Items for the grotto at Town Hall,Store Purchase,4301,Chief Executive,Office of Chief Executive
Chorley Borough Council,http://Statistics.Data.gov.uk/id/local-Authority/30UE,11/12/2020,98.14,Facebook,Facebook campaign,Online Purchase,4301,Chief Executive,Office of Chief Executive
Chorley Borough Council,http://Statistics.Data.gov.uk/id/local-Authority/30UE,15/12/2020,9.99,Post Office,Parcel sent via Post Office,Store Purchase,4323,Chief Executive,Office of Chief Executive
Chorley Borough Council,http://Statistics.Data.gov.uk/id/local-Authority/30UE,16/12/2020,74.99,Argos,Radiators,Store Purchase,4333,Chief Executive,Office of Chief Executive
Chorley Borough Council,http://Statistics.Data.gov.uk/id/local-Authority/30UE,17/12/2020,149.98,Argos,Radiators,Store Purchase,4333,Chief Executive,Office of Chief Executive
Chorley Borough Council,http://Statistics.Data.gov.uk/id/local-Authority/30UE,18/12/2020,100.00,Sports Direct,Gift Vouchers,Online Purchase,4400,Chief Executive,Office of Chief Executive
Chorley Borough Council,http://Statistics.Data.gov.uk/id/local-Authority/30UE,22/12/2020,33.79,Facebook,COVID - reopening of the high street safely campaign,Online Purchase,4301,Chief Executive,Office of Chief Executive
